Cogmind - Beta 17 @@@ ROGUE MODE // 2026.07.31 @ 22:30:45 Player: LanceLander Result: Destroyed by Z-Imprinter with Zionite Laser-M Performance ------------- Evolutions (1) 500 Regions Visited (6) 1200 Robots Destroyed (43) 215 Value Destroyed (1013) 1013 Prototype IDs (10) 200 Alien Tech Used (0) 0 Bonus (562) 562 TOTAL SCORE: 3690 Bonus ------- High Alert Combat Kills 30 Follower Combat Kills 232 Met Imprinter 300 Cogmind --------- Core Integrity 0/400 Matter 211/300 Energy 98/100 System Corruption 0% Temperature Cool (18) Movement Rolling (105) Ox1 Location -7/Deep Caves Parts ------- > --- POWER (1) -------- (None) > --- PROPULSION (2) --- Armored Wheel Armored Wheel > --- UTILITY (4) ------ Large Storage Unit Experimental Signal Interpreter Hacking Suite > --- WEAPON (2) ------- Advanced Beam Cannon Advanced Beam Cannon > --- INVENTORY (15) --- Armored Wheel Experimental Sensor Array Improved Targeting Computer Improved Targeting Computer Improved Targeting Computer Improved Targeting Computer Improved Light Armor Plating Makeshift System Shield Mobile Refinery Mk. CCLXVII Rocket Launcher Makeshift Spear Peak State ------------ > --- POWER ------------ Makeshift Power Source > --- PROPULSION ------- Armored Wheel Armored Wheel > --- UTILITY ---------- Large Storage Unit Experimental Sensor Array Experimental Core Analyzer Hacking Suite > --- WEAPON ----------- Advanced Beam Cannon Makeshift Spear > --- INVENTORY -------- Light Nuclear Core Armored Wheel Armored Wheel Improved Targeting Computer Improved Targeting Computer Improved Targeting Computer Improved Targeting Computer Hardened Medium Armor Plating Improved Light Armor Plating Makeshift System Shield Mobile Refinery Mk. CCLXVII Advanced Beam Cannon Advanced Beam Cannon Battle Cannon Rocket Launcher [Rating: 42] Favorites ----------- Power Light Nuclear Core Engine Improved Ion Engine Power Core Light Nuclear Core Propulsion Aluminum Leg Leg Aluminum Leg Wheel Armored Wheel Utility Large Storage Unit Device Experimental Sensor Array Storage Large Storage Unit Processor Experimental Signal Interpreter Hackware Hacking Suite Protection Improved Light Armor Plating Weapon Advanced Beam Cannon Energy Gun Particle Gun Energy Cannon Advanced Beam Cannon Ballistic Gun Minigun Ballistic Cannon Battle Cannon Launcher Rocket Launcher Slashing Weapon Katana Piercing Weapon Makeshift Spear Build | -11 -10 -10 -9 -9 -7 -7 ------- Run | Yrd Mat Min Mat Min Zio Dee Slots Evolved 2 | . . . 2 . . . Power . | . . . . . . . Propulsion . | . . . . . . . Utility 2 | . . . 2 . . . Weapon . | . . . . . . . Parts Attached 44 | 8 7 2 14 . 8 5 Power 6 | 1 2 . 1 . 1 1 Engine 4 | 1 1 . 1 . 1 . Core 2 | . 1 . . . . 1 Reactor . | . . . . . . . Propulsion 8 | 3 . . 4 . . 1 Treads . | . . . . . . . Leg 4 | 2 . . 2 . . . Wheel 4 | 1 . . 2 . . 1 Hover . | . . . . . . . Flight . | . . . . . . . Utility 16 | 2 3 . 5 . 5 1 Device 5 | 1 . . 3 . 1 . Storage 2 | 1 1 . . . . . Processor 4 | . . . . . 4 . Hackware 1 | . . . 1 . . . Protection 4 | . 2 . 1 . . 1 Artifact . | . . . . . . . Weapon 14 | 2 2 2 4 . 2 2 Energy Gun 4 | 2 2 . . . . . Energy Cannon 3 | . . . 2 . . 1 Ballistic Gun 2 | . . . 2 . . . Ballistic Cannon 1 | . . . . . . 1 Launcher 2 | . . 2 . . . . Special Weapon . | . . . . . . . Impact Weapon . | . . . . . . . Slashing Weapon 1 | . . . . . 1 . Piercing Weapon 1 | . . . . . 1 . Special Melee Weapon . | . . . . . . . Unidentified Prototypes 5 | . . . . . 5 . Parts Lost 8 | . 1 . . . 1 6 Power 2 | . . . . . . 2 Propulsion 1 | . . . . . . 1 Utility 2 | . . . . . 1 1 Weapon 3 | . 1 . . . . 2 Highest Loss Streak 6 | . 1 . . . 1 6 To Critical Strikes . | . . . . . . . Average Backups 13 | 1 9 14 14 15 14 14 Power . | . 1 . . 1 1 . Propulsion 2 | . 2 2 2 2 2 1 Utility 7 | . 3 9 9 9 8 8 Weapon 2 | . 2 2 2 3 3 3 Tool/Special . | . . . . . . . Unused Backups 21 | . 1 2 10 . 1 7 Power 1 | . 1 . . . . . Propulsion 4 | . . 1 2 . . 1 Utility 12 | . . . 5 . 1 6 Weapon 4 | . . 1 3 . . . Tool/Special . | . . . . . . . Average Slot Usage (%) 99 | . 100 100 99 100 99 97 Engine 7 | . 10 . 5 11 11 9 Core 4 | . 3 14 5 . . . Leg 14 | . 28 28 15 . . . Wheel 9 | . . . 6 22 22 22 Device 8 | . 1 . 12 11 15 8 Storage 12 | . 14 14 11 11 11 11 Hackware 6 | . . . 9 11 11 11 Protection 9 | . 12 14 11 11 5 1 Energy Gun 9 | . 28 16 2 . . . Energy Cannon 6 | . . . 2 22 14 21 Ballistic Gun 2 | . . . 7 . . . Launcher 4 | . . 11 9 . . . Piercing Weapon 1 | . . . . . 5 . Peak Build Rating 42 | 9 11 14 31 31 42 39 Average Rating 21 | 6 8 13 22 31 32 37 On Entrance 18 | . 9 11 14 31 31 33 Avg Prop Armor Cover (%) . | . . . . . . . Naked Turns . | . . . . . . . Heaviest Build 40 | 11 33 35 40 39 39 36 Greatest Support 24 | 20 20 20 24 24 24 24 Greatest Overweight (x) 3 | . 1 1 3 1 1 2 Average Overweight (x) . | . . 1 1 1 1 1 Largest Inventory Capacity 15 | 8 15 15 15 15 15 15 Average Capacity 14 | 6 11 15 15 15 15 15 Most Carried 15 | 3 15 15 15 15 15 15 Average Carried 13 | 2 9 14 14 15 14 14 Final Capacity 15 | 8 15 15 15 15 15 15 Final Carried 15 | 3 15 15 15 15 15 11 Class Distribution -------------------- 91% | Mutant 8% | Scavenger-Mutant Dominant Class ---------------- Mutant | -10/Materials Mutant | -10/Mines Mutant | -9/Materials Mutant | -9/Mines Mutant | -7/Zion Mutant | -7/Deep Caves Resources | -11 -10 -10 -9 -9 -7 -7 ----------- Run | Yrd Mat Min Mat Min Zio Dee Matter Collected 925 | 152 198 36 463 . 32 44 Remotely . | . . . . . . . Salvage Created 1324 | 11 477 47 630 85 . 74 Parts 92 | 2 31 1 48 5 . 5 Haulers Intercepted 1 | . . . 1 . . . Recyclers Shooed 1 | . . . 1 . . . Parts Field Recycled . | . . . . . . . Retrieved Matter . | . . . . . . . Parts Self-Destructed . | . . . . . . . Prevented . | . . . . . . . Parts Restored . | . . . . . . . Kills | -11 -10 -10 -9 -9 -7 -7 ------- Run | Yrd Mat Min Mat Min Zio Dee Combat Hostiles Destroyed 35 | . 10 2 18 2 . 3 Guns 16 | . 10 . 6 . . . Cannons 7 | . . . 2 2 . 3 AOE 12 | . . 2 10 . . . Classes Destroyed 10 | 1 5 . 3 . . 1 Builder 1 | . . . 1 . . . Tunneler 1 | 1 . . . . . . Hauler 1 | . . . 1 . . . Recycler 3 | . 1 . 2 . . . Operator 3 | . 2 . 1 . . . Watcher 2 | . 1 . 1 . . . Swarmer 13 | . 3 . 10 . . . Grunt 16 | . 7 2 5 2 . . Sentry 3 | . . . 3 . . . Z-Technician 2 | . . . . . . 2 Assembled 3 | . . . . . . 3 Best Kill Streak 5 | 1 3 2 5 2 . 2 Combat Bots Only 4 | . 3 2 4 2 . 2 Max Kills in Single Turn 3 | 1 1 1 3 1 . 1 Gunslinging . | . . . . . . . Exploded 2 | . . 1 2 . . . Melee . | . . . . . . . Uniques/NPCs Destroyed . | . . . . . . . Combat | -11 -10 -10 -9 -9 -7 -7 -------- Run | Yrd Mat Min Mat Min Zio Dee Hostile Shots Fired 148 | . 55 2 47 . . 44 Missed 41 | . 15 1 14 . . 11 Hits 107 | . 40 1 33 . . 33 Melee 2 | . . . . . . 2 Projectile 105 | . 40 1 33 . . 31 Critical Strikes 1 | . . . 1 . . . Damage Taken 2102 | . 486 17 511 . . 1088 Core 523 | . 96 . 59 . . 368 Absorbed by Shields . | . . . . . . . Regen/Repaired (Parts) 41 | . . . 41 . . . Core Remaining (%) 80 | 100 . 61 . . . . Volleys Fired 111 | 1 39 3 52 4 . 12 Largest 2 | 2 2 1 2 2 . 2 Hottest 136 | 80 105 33 136 136 . 136 Shots Fired 180 | 2 78 3 65 8 . 24 Gun 126 | 2 78 . 46 . . . Cannon 42 | . . . 10 8 . 24 Launcher 12 | . . 3 9 . . . Special . | . . . . . . . Kinetic 48 | . . . 45 . . 3 Thermal 104 | 2 62 . 11 8 . 21 Explosive 12 | . . 3 9 . . . Electromagnetic 16 | . 16 . . . . . Robot Hit Streak 18 | 1 9 4 14 18 . 3 Robot Miss Streak 4 | . 3 . 4 3 . 4 Penetration Max . | . . . . . . . Secondary Targets 2 | . 2 . . . . . Max Gunslinging Chain 1 | . 1 . . . . . Shots Hit Robots 102 | 1 45 2 40 5 . 9 Core Hits 69 | 1 25 3 29 3 . 8 Critical Kills . | . . . . . . . Critical Parts Destroyed . | . . . . . . . Critical Strikes 1 | . . . 1 . . . Burn 1 | . . . 1 . . . Melee Attacks 1 | . . . . . 1 . Impact . | . . . . . . . Slashing 1 | . . . . . 1 . Piercing . | . . . . . . . Sneak Attacks . | . . . . . . . Combat Hostiles . | . . . . . . . Follow-up Attacks . | . . . . . . . Damage Inflicted 2633 | 12 569 220 1553 101 . 178 Guns 1090 | 12 564 . 514 . . . Cannons 481 | . . . 202 101 . 178 Explosions 1007 | . . 188 819 . . . Melee . | . . . . . . . Ramming 55 | . 5 32 18 . . . Kinetic 532 | . . . 497 . . 35 Thermal 884 | 12 409 . 219 101 . 143 Explosive 1007 | . . 188 819 . . . Electromagnetic 155 | . 155 . . . . . Impact . | . . . . . . . Slashing . | . . . . . . . Piercing . | . . . . . . . Highest Corruption . | . . . . . . . Average Corruption . | . . . . . . . Corruption Purged . | . . . . . . . Corruption Blocked . | . . . . . . . Overload Shots . | . . . . . . . Overflow Damage 64 | . . . 64 . . . Projectiles . | . . . . . . . Explosions 64 | . . . 64 . . . Melee . | . . . . . . . Knockbacks 1 | . . 1 . . . . Impact 1 | . . 1 . . . . Kinetic . | . . . . . . . Secondary . | . . . . . . . Self-Inflicted Damage 89 | . . . 89 . . . Shots 2 | . . . 2 . . . Rammed 2 | . . . 2 . . . Targets Rammed 12 | . 1 7 4 . . . Kicked 10 | . 1 7 2 . . . Crushed . | . . . . . . . Highest Temperature 332 | 18 327 15 223 225 312 332 Average Temperature 87 | 12 81 9 42 97 159 134 Received Heat Transfer 597 | . 162 9 138 . . 288 Effects 4 | . . . . . . 4 Energy Bleed 1 | . . . . . . 1 Interference 3 | . . . . . . 3 Siege Activations . | . . . . . . . Martial Activations . | . . . . . . . Shielding Activations . | . . . . . . . Robots Disrupted . | . . . . . . . Combat Hostiles . | . . . . . . . Robots Corrupted . | . . . . . . . Combat Hostiles . | . . . . . . . Parts Fried . | . . . . . . . Impact Corruptions . | . . . . . . . Robots Melted . | . . . . . . . Combat Hostiles . | . . . . . . . Parts Melted 2 | . 1 . . 1 . . Heat Transferred 1819 | 25 925 . 481 185 . 203 Parts Sabotaged . | . . . . . . . Parts Stolen . | . . . . . . . Parts Stripped . | . . . . . . . Power Chain Reactions . | . . . . . . . Alert | -11 -10 -10 -9 -9 -7 -7 ------- Run | Yrd Mat Min Mat Min Zio Dee Maximum Alert Level 2 | . . . 2 1 . . Low Security (%) 90 | 100 100 100 79 . . . Level 1 4 | . . . 8 100 . . Level 2 4 | . . . 12 . . . Level 3 . | . . . . . . . Level 4 . | . . . . . . . Level 5 . | . . . . . . . High Security . | . . . . . . . Max Security . | . . . . . . . Peak Influence 628 | 5 65 73 628 287 . . Initial 244 | . . . . 244 . . Average 52 | . 18 7 104 279 . . Influence Increases 1390 | 5 306 81 945 53 . . Destroy 0b10 Robot/C 800 | . 200 40 520 40 . . Destroy 0b10 Robot/NC 70 | 5 20 . 45 . . . Destroy Leader 202 | . 52 10 130 10 . . Allied During Kill 78 | . . 8 67 3 . . Successful Hack 36 | . 19 . 17 . . . Disable Machine 60 | . . . 60 . . . Destroy Structure 114 | . . 23 91 . . . Lose Combat Pursuer 30 | . 15 . 15 . . . Influence Decreases 1390 | 5 306 81 317 404 277 . Entered New Map 661 | . . . . 384 277 . Time Decay 679 | 5 296 81 277 20 . . Lost Part 10 | . 10 . . . . . Lost Ally 40 | . . . 40 . . . Squads Dispatched 5 | . 2 . 3 . . . Investigation 3 | . . . 3 . . . Extermination . | . . . . . . . Reinforcement 2 | . 2 . . . . . Assault . | . . . . . . . Garrison . | . . . . . . . Intercept . | . . . . . . . Searches Triggered . | . . . . . . . Construction Impeded . | . . . . . . . Haulers Reinforced . | . . . . . . . Active Scanning Responses . | . . . . . . . Cargo Convoy Interrupts . | . . . . . . . Stealth | -11 -10 -10 -9 -9 -7 -7 --------- Run | Yrd Mat Min Mat Min Zio Dee Distress Signals 1 | . . . 1 . . . Communications Jammed . | . . . . . . . Distress Signals . | . . . . . . . Times Spotted 66 | . 23 2 32 1 . 8 Peak Tracking Total 6 | . 4 2 4 1 . 6 Tactical Retreats 2 | . 1 . 1 . . . Traps | -11 -10 -10 -9 -9 -7 -7 ------- Run | Yrd Mat Min Mat Min Zio Dee Traps Triggered 3 | . 2 . 1 . . . Indirectly . | . . . . . . . Trap Hack Attempts . | . . . . . . . Triggered . | . . . . . . . Disarmed . | . . . . . . . Reprogrammed . | . . . . . . . Reused . | . . . . . . . Traps Extracted . | . . . . . . . Installed . | . . . . . . . Triggered . | . . . . . . . Machines | -11 -10 -10 -9 -9 -7 -7 ---------- Run | Yrd Mat Min Mat Min Zio Dee Machines Disabled 5 | . . . 4 . . 1 Max in Single Turn 2 | . . . 2 . . 1 Machines Repaired . | . . . . . . . Machines Dismantled . | . . . . . . . Machines Sabotaged . | . . . . . . . Overloaded Fab Kills . | . . . . . . . Hacking | -11 -10 -10 -9 -9 -7 -7 --------- Run | Yrd Mat Min Mat Min Zio Dee Machines Accessed 17 | . 6 1 9 . 1 . Terminals 11 | . 5 . 6 . . . Fabricators . | . . . . . . . Repair Stations 1 | . . . 1 . . . Recycling Units 1 | . 1 . . . . . Scanalyzers 2 | . . . 2 . . . Garrison Access . | . . . . . . . Total Hacks 41 | . 14 1 22 . 4 . Successful 23 | . 8 1 10 . 4 . Failed 17 | . 6 . 11 . . . Catastrophic 4 | . 1 . 3 . . . Database Lockouts 1 | . . . 1 . . . Manual 8 | . . . 4 . 4 . Terminals 22 | . 9 . 13 . . . Fabricators . | . . . . . . . Repair Stations 3 | . . . 3 . . . Recycling Units 5 | . 5 . . . . . Scanalyzers 6 | . . . 6 . . . Garrison Access . | . . . . . . . Terminal Hacks 15 | . 5 1 5 . 4 . Part Schematic 4 | . . . . . 4 . Robot Analysis 1 | . 1 . . . . . Prototype ID Bank 2 | . 2 . . . . . Open Door 1 | . . 1 . . . . Branch Access Points 1 | . . . 1 . . . Scanalyzer Index 1 | . . . 1 . . . Alert Level 1 | . 1 . . . . . Locate Traps 1 | . . . 1 . . . Dispatch Records 1 | . . . 1 . . . Transport Status 1 | . 1 . . . . . Recall Investigation 1 | . . . 1 . . . Fabricator Hacks . | . . . . . . . Repair Station Hacks 2 | . . . 2 . . . Scan Component 1 | . . . 1 . . . Repair 1 | . . . 1 . . . Recycling Unit Hacks 3 | . 3 . . . . . Process 1 | . 1 . . . . . Report Inventory 1 | . 1 . . . . . Retrieve Matter 1 | . 1 . . . . . Scanalyzer 3 | . . . 3 . . . Insert Component 1 | . . . 1 . . . Analyze 1 | . . . 1 . . . Retrieve Study 1 | . . . 1 . . . Garrison Access Hacks . | . . . . . . . Unauthorized Hacks . | . . . . . . . Terminals . | . . . . . . . Fabricators . | . . . . . . . Repair Stations . | . . . . . . . Recycling Units . | . . . . . . . Scanalyzers . | . . . . . . . Garrison Access . | . . . . . . . Data Cores Recovered 1 | . . . 1 . . . Used . | . . . . . . . Hacking Detections 12 | . 4 . 8 . . . Full Trace Events 3 | . 1 . 2 . . . Feedback Events . | . . . . . . . Feedback Blocked . | . . . . . . . Robot Schematics Acquired 3 | . . . . . 3 . Robots Built . | . . . . . . . Authchips . | . . . . . . . Time . | . . . . . . . Total Robot Build Rating . | . . . . . . . Part Schematics Acquired 19 | . . . 1 . 18 . Parts Built . | . . . . . . . Authchips . | . . . . . . . Time . | . . . . . . . Total Part Build Rating . | . . . . . . . Part Studies Acquired 1 | . . . 1 . . . Parts Repaired 1 | . . . 1 . . . Time 32 | . . . 32 . . . Parts Recycled . | . . . . . . . Recycled Matter 213 | . 213 . . . . . Retrieved Matter 349 | . 349 . . . . . Retrieved Components . | . . . . . . . Parts Scanalyzed 1 | . . . 1 . . . Part Schematics Acquired 1 | . . . 1 . . . Parts Damaged . | . . . . . . . Bothacking | -11 -10 -10 -9 -9 -7 -7 ------------ Run | Yrd Mat Min Mat Min Zio Dee Used RIF Installer . | . . . . . . . Robots Hacked . | . . . . . . . Non-combat . | . . . . . . . Combat . | . . . . . . . Robot Hacks Applied . | . . . . . . . Relay Couplers Released . | . . . . . . . Fabnet Peak Effective % . | . . . . . . . Robots Rewired . | . . . . . . . Allies Hacked . | . . . . . . . Hacks Repelled . | . . . . . . . Allies | -11 -10 -10 -9 -9 -7 -7 -------- Run | Yrd Mat Min Mat Min Zio Dee Total Allies 3 | . . 3 . . . . Largest Group 3 | . . 3 3 1 1 1 Highest-Rated Group 40 | . . 40 40 16 16 16 Highest-Rated Ally 16 | . . 16 16 16 16 16 Total Orders . | . . . . . . . Ally Attacks 59 | . . 1 43 4 . 11 Total Damage 740 | . . . 556 60 . 124 Kills 11 | . . . 11 . . . Allies Corrupted . | . . . . . . . Allies Melted . | . . . . . . . Intel | -11 -10 -10 -9 -9 -7 -7 ------- Run | Yrd Mat Min Mat Min Zio Dee Active Infowar (turns) 3333 | 22 79 . 1453 44 1514 221 Sensors 1782 | . . . 3 44 1514 221 Terrain 102 | 22 79 . . . 1 . Structural 1351 | . . . 700 . 651 . Traps 949 | . . . 949 . . . Robot Analysis Total 1 | . 1 . . . . . Derelict Logs Recovered 3 | . . 3 . . . . Drone Launches . | . . . . . . . Drone Recoveries . | . . . . . . . Exploration | -11 -10 -10 -9 -9 -7 -7 ------------- Run | Yrd Mat Min Mat Min Zio Dee Turns Passed 5416 | 67 1003 1014 1457 44 1550 281 Spaces Moved 3496 | 44 528 507 760 28 1420 209 Core 2 | 2 . . . . . . Treads . | . . . . . . . Legs 1559 | 39 528 507 485 . . . Wheels 1935 | 3 . . 275 28 1420 209 Hover . | . . . . . . . Flight . | . . . . . . . Fastest Speed 50 | 50 120 190 105 105 105 105 Average Speed 136 | 114 153 190 159 105 105 105 Slowest Speed 190 | 120 190 190 190 105 105 120 Overloaded Moves . | . . . . . . . Propulsion Burnouts . | . . . . . . . Robots Hopped . | . . . . . . . Potential Cave-ins . | . . . . . . . Cave-ins Triggered . | . . . . . . . Exploration Rate (%) 53 | 3 70 99 70 12 86 36 Regions Visited 6 Branch Regions 4 Pre-discovered Areas 3 | . . 1 . . 2 . Known Exits Taken 2 | . . . 1 . 1 . Unknown Exits Taken 4 | 1 1 1 . 1 . . Scrap Searched 3 | . . 1 . . 2 . Spaces Dug . | . . . . . . . Terrain Destroyed 148 | . . 42 106 . . . Melee . | . . . . . . . Projectile . | . . . . . . . AOE 148 | . . 42 106 . . . Terrain Rammed . | . . . . . . . Walls Destroyed . | . . . . . . . Machines Disabled . | . . . . . . . Actions | -11 -10 -10 -9 -9 -7 -7 --------- Run | Yrd Mat Min Mat Min Zio Dee Total 3965 | 55 646 553 954 34 1477 246 Wait 210 | . 52 20 86 3 30 19 Move 3490 | 43 527 506 759 27 1419 209 Hop . | . . . . . . . Pick Up 41 | 2 14 7 13 . 5 . Fast Attach 21 | 8 . . 7 . 6 . Attach 8 | . 2 . 1 . 1 4 Detach 5 | 1 1 . . . 3 . Swap 27 | . 5 2 13 . 5 2 Drop 39 | . 5 8 19 . 7 . Fire 111 | 1 39 3 52 4 . 12 Melee 1 | . . . . . 1 . Ram 2 | . . . 2 . . . Kick 10 | . 1 7 2 . . . Crush . | . . . . . . . Escape Stasis . | . . . . . . . Rewire . | . . . . . . . Trap . | . . . . . . . Miscellaneous . | . . . . . . . Route ------- -11/Scrapyard -10/Materials (discovered 3 exits: *Mat / *Min / [*Sub]) -10/Mines (discovered 3 exits: *Mat x2 / [*Sub]) -9/Materials (discovered 6 exits: *Mat x3 / *Min x2 / *Sto) -9/Mines -7/Zion -7/Deep Caves History --------- Turn | Location | Event 13 | -11/Scrapyard | Discovered new exit (range 15) 68 | -11/Scrapyard | Entered Materials 319 | -10/Materials | Build established: Mutant 347 | -10/Materials | Discovered new exit (range 7) 862 | -10/Materials | Discovered new exit (range 9) 968 | -10/Materials | Discovered new exit (range 15) 1071 | -10/Materials | Entered Mines 1094 | -10/Mines | Learned location of 1 exit from Materials 1187 | -10/Mines | Discovered new exit (range 6) 1246 | -10/Mines | Learned location of 1 exit from Materials 1262 | -10/Mines | Received a Rocket Launcher from a helpful Derelict 1331 | -10/Mines | Met a Derelict who couldn't figure out how to use a Trap Extractor 1553 | -10/Mines | Discovered new exit (range 6) 1678 | -10/Mines | Assisted by bots powering up and referring to "LRC-V3" 1711 | -10/Mines | Discovered new exit (range 9) 1865 | -10/Mines | Found a damaged Exp. Sensor Array with a note attached 1869 | -10/Mines | Found Prototype Device 1874 | -10/Mines | Learned location of Storage (-9) 2085 | -10/Mines | Entered Materials 2085 | -9/Materials | Accompanied by 3 allies 2085 | -9/Materials | Evolved 2 slots: Utility x2 2086 | -9/Materials | Identified exit to Materials 2362 | -9/Materials | Central database locked down 2483 | -9/Materials | Identified exit to Mines 2483 | -9/Materials | Identified exit to Storage 2924 | -9/Materials | Repaired Rocket Launcher 3004 | -9/Materials | Build established: Scavenger-Mutant 3364 | -9/Materials | Discovered exit to Materials (range 16) 3433 | -9/Materials | Build established: Mutant 3506 | -9/Materials | Identified Exp. Sensor Array 3542 | -9/Materials | Entered Mines 3542 | -9/Mines | Accompanied by 1 ally 3543 | -9/Mines | Assembled infested the area 3543 | -9/Mines | A Derelict revealed a hidden shortcut to a safe place 3586 | -9/Mines | Entered Zion 3586 | -7/Zion | Accompanied by 1 ally 3825 | -7/Zion | Acquired unknown access codes intercepted by a Zionite 4000 | -7/Zion | Given A8's code to call for help 4402 | -7/Zion | Met Imprinter 4768 | -7/Zion | Found Prototype Device 4917 | -7/Zion | Found Prototype Processor 4917 | -7/Zion | Identified Exp. Core Analyzer 4920 | -7/Zion | Found Prototype Processor 4920 | -7/Zion | Identified Exp. Armor Integrity Analyzer 4923 | -7/Zion | Found Prototype Processor 4923 | -7/Zion | Identified Exp. Target Analyzer 4928 | -7/Zion | Found Prototype Processor 4928 | -7/Zion | Identified Exp. Melee Analysis Suite 4932 | -7/Zion | Found Prototype Processor 4932 | -7/Zion | Identified Exp. Signal Interpreter 5107 | -7/Zion | Opened final containment barrier to the Deep Caves 5125 | -7/Zion | Discovered new exit (range 3) 5125 | -7/Zion | Saw the warning signs outside the Deep Caves entrance 5128 | -7/Zion | Identified exit to Deep Caves 5136 | -7/Zion | Entered Deep Caves 5136 | -7/Deep Caves | Accompanied by 1 ally 5358 | -7/Deep Caves | Z-Facility disabled 5374 | -7/Deep Caves | Attacked by Z-Imprinter 5388 | -7/Deep Caves | Core integrity fell below 50% 5401 | -7/Deep Caves | Core integrity fell below 20% 5417 | -7/Deep Caves | Destroyed by Z-Imprinter with Zionite Laser-M Last Messages --------------- 05242_ Overheating: System interference. 05242_ Exp. Sensor Array temporarily disabled. 05242_ Adv. Beam Cannon temporarily disabled. 05242_ Acquired 12 matter. 05358_ YX-WPY(o) destroyed. 05358_ Z-Facility disabled. 05362_ NEW_ZION: Z-Facility proximity alert. 05369_ 7Y-NBD(o) destroyed. 05374_ Adv. Beam Cannon destroyed. Z-Imprinter: GET AWAY FROM HERE! I've worked too hard for our future just to have you ruin everything! 05377_ Mak. Power Source destroyed. 05380_ Lgt. Nuclear Core destroyed. 05387_ Battle Cannon destroyed. 05393_ Overheating: System interference. 05393_ Exp. Signal Interpreter temporarily disabled. 05394_ Trooper 1b destroyed. 05396_ Overheating: Energy bleed (-14). 05400_ Arm. Wheel destroyed. 05406_ Hrd. Medium Armor Plating destroyed. Map ----- +----------------------------------------------------+ | ??????????????????????????????????????????? | | ??????????????????????????????????????????? | | ??????????????????????????????????????????? | | ??????????????????????????????????????????? | | ??????????????????????????????????????????? | | ??????????????????????????????????????????? | | ??????????????????????????????????????????? | | ??????????????????????????????????????????? | | ??????????????????????????????????????????? | | ??????????????????????????????????????????? | | ??????????????????????????????????????????? | | ??????????????????????????????????????????? | | ?????????????????? ????????????????????? | | ???????????????? ????????????????????? | | ?????????????? ?????????????? | | ?????????????? ????????????? | | ????????????? ???????????? | | ????????????? ???????????""%= | | ???????????? """"?? ???? * | | ???????????? """""" ???? | | ???????????? """""" ???"" | | ??????????? """""" ""?"""" | | ??????????? """"" """"""" | | ?????????? """" """"""" | | ?????????? """" """"" | | ?????????? @"""" """ | | ?????????? """" = | | ?????????? """""""""" %! %= | | ?????????? I""""""""" = | | ?????????? | | ?????????? | | ??????????? | | ??????????? | | ???????????? | | ???????????? | | ???????????? ##### | | ?????????????## zz### ####???### | | ??????????????# ??## ##????????### | | ??????????????###????### #####???????????? | | ???????????????????????###########???????????????? | | ?????????????????????????????????????????????????? | | | | | | | | | | | | | | | | | | | +----------------------------------------------------+ Best States ------------- Heat Dissipation 28 Energy Generation 15 Energy Capacity 265 Matter Stores 300 Matter Capacity 300 Sight Range 16 Robot Scan Range 20 Terrain Scan Range 16 Terrain Scan Density 10 Armor Coverage 225 Evasion (%) 55 Offensive Hacking 10 Item Schematics ----------------- Exp. Sensor Array | -9/Materials | Scanalyzed Hvy. Laser | -7/Zion | Archive Energy Well | -7/Zion | Archive Med. Treads | -7/Zion | Archive Imp. Heavy Armor Plating | -7/Zion | Archive Hvy. Missile Launcher | -7/Zion | Archive Plasma Rifle | -7/Zion | Archive Imp. Shield Generator | -7/Zion | Archive Arm. Medium Treads | -7/Zion | Archive KE Penetrator | -7/Zion | Archive Imp. Core Shielding | -7/Zion | Archive Phase Cannon | -7/Zion | Archive Flak Gun | -7/Zion | Archive Proton Cannon | -7/Zion | Archive Hvy. Mass Driver | -7/Zion | Archive Riot Gun | -7/Zion | Free Hvy. Riot Gun | -7/Zion | Free Enh. Flamer | -7/Zion | Free Hvy. Beamcaster | -7/Zion | Free Robot Schematics ------------------ C-17 Slicer | -7/Zion | Archive G-47 Trooper | -7/Zion | Archive S-27 Virus | -7/Zion | Archive Fabricated ------------ Nothing Repaired ---------- Rocket Launcher | 41% | -9/Materials Studied --------- Com. Wheel | -9/Materials | Hacked Alien Tech Used ----------------- None Achievements -------------- None Challenges ------------ None Game ------ Seed SkeletonGuidanceAutohacker Manual? 0 Play Time 00:45:38 Cumulative 94.7 hours Start 2026.07.31 @ 21:47:37 End 2026.07.31 @ 22:30:45 Sessions 1 Manual Loads 0 Difficulty Rogue Special Mode None Game No. 56 Rogue 56 Adventurer 0 Explorer 0 Win Type - Total 1 Types 1/0/0/0/0/0/0/0/0/0 Lore% 54 Gallery% 52 Achievement% 42 Wizard Run 0 Options --------- Layout 0 ASCII 0 Keyboard 1 Movement Vi Keybinds 0 Fullscreen 1 Font 24/Smallcaps Map View 76x50 Zoom Use 0% Tactical HUD 1 Map Filters NONE Filters NONE Steam 1 RUN: 0239ac6f-9414-4238-b224-1880f9e11488